bitfinex/quotes_BTCUSD_20221001
["timestamp","ask_amount","ask_price","bid_price","bid_amount"]
[1664623051288,2.17983988,19336.0,19335.0,0.29631676]
[1664623051957,2.21783988,19336.0,19335.0,0.29631676]
[1664623052870,2.13680715,19336.0,19335.0,0.29631676]
[1664623053099,2.21783988,19336.0,19335.0,0.29631676]
[1664623053314,2.17983988,19336.0,19335.0,0.29631676]
[1664623054214,2.21783988,19336.0,19335.0,0.29631676]
[1664623054886,3.62957132,19336.0,19335.0,0.29631676]
[1664623055104,0.07619252,19332.0,19329.0,0.1]
[1664623055339,0.07619252,19330.0,19329.0,0.1]
[1664623055699,0.07619252,19329.0,19328.0,0.0011]
[1664623056178,0.07619252,19329.0,19328.0,0.135519]
[1664623057047,0.44197316,19329.0,19328.0,0.135519]
[1664623057263,1.30845798,19329.0,19328.0,0.135519]
[1664623057480,0.91324828,19329.0,19328.0,0.135519]
[1664623058164,0.94924828,19329.0,19328.0,0.135519]
[1664623058392,1.34445798,19329.0,19328.0,0.135519]
[1664623059127,0.94924828,19329.0,19328.0,0.135519]
[1664623059345,0.91324828,19329.0,19328.0,0.135519]
[1664623060235,0.94924828,19329.0,19328.0,0.135519]
[1664623061352,0.91324828,19329.0,19328.0,0.135519]
[1664623062082,0.94924828,19329.0,19328.0,0.135519]
[1664623063405,0.91324828,19329.0,19328.0,0.135519]
[1664623064305,0.94924828,19329.0,19328.0,0.135519]
[1664623064729,0.87305576,19329.0,19328.0,0.135519]
[1664623065880,0.83705576,19329.0,19328.0,0.135519]
[1664623066100,0.87305576,19329.0,19328.0,0.135519]
[1664623066774,0.04447381,19329.0,19328.0,0.135519]
[1664623067459,0.00847381,19329.0,19328.0,0.135519]
[1664623068210,0.04447381,19329.0,19328.0,0.135519]
[1664623068690,0.04447381,19329.0,19328.0,0.395519]
[1664623069302,0.00847381,19329.0,19328.0,0.395519]
[1664623070146,0.04447381,19329.0,19328.0,0.395519]
[1664623071490,0.00847381,19329.0,19328.0,0.395519]
[1664623072180,0.04647381,19329.0,19328.0,0.395519]
[1664623072874,0.04647381,19329.0,19328.0,0.95974494]
[1664623073107,0.04647381,19329.0,19328.0,1.20086418]
[1664623073513,0.00847381,19329.0,19328.0,1.20086418]
[1664623073710,0.00847381,19329.0,19328.0,1.14836968]
[1664623074229,0.04647381,19329.0,19328.0,1.14836968]
[1664623075058,0.04647381,19329.0,19328.0,1.14829268]
[1664623075517,0.00847381,19329.0,19328.0,1.14829268]
[1664623076202,0.04647381,19329.0,19328.0,1.14829268]
[1664623077397,0.00847381,19329.0,19328.0,1.19829268]
[1664623077627,0.00847381,19329.0,19328.0,1.14829268]
[1664623078390,0.04647381,19329.0,19328.0,1.14829268]
[1664623079048,0.04647381,19329.0,19328.0,1.32606455]
[1664623079272,0.04647381,19329.0,19328.0,1.68425955]
[1664623079843,0.00847381,19329.0,19328.0,2.07946925]
[1664623080293,0.05047381,19329.0,19328.0,1.27606455]
[1664623080718,0.05047381,19329.0,19328.0,1.63425955]
[1664623081146,0.05047381,19329.0,19328.0,1.32606455]
[1664623081361,0.00847381,19329.0,19328.0,1.68425955]
[1664623081680,0.00847381,19329.0,19328.0,1.27606455]
[1664623082332,0.05047381,19329.0,19328.0,1.27606455]
[1664623082791,0.05047381,19329.0,19328.0,1.32606455]
[1664623083459,0.00847381,19329.0,19328.0,1.68425955]
[1664623083693,0.00847381,19329.0,19328.0,1.32606455]
[1664623084290,0.05047381,19329.0,19328.0,1.32606455]
[1664623084454,0.05047381,19329.0,19328.0,1.37606455]
[1664623084668,0.05047381,19329.0,19328.0,1.72127425]
[1664623084929,0.05047381,19329.0,19328.0,1.32606455]
[1664623085154,0.05047381,19329.0,19328.0,1.37606455]
[1664623085609,0.00847381,19329.0,19328.0,1.77127425]
[1664623085989,0.00847381,19329.0,19328.0,1.37606455]
[1664623086211,0.05047381,19329.0,19328.0,1.73425955]
[1664623086421,0.05047381,19329.0,19328.0,2.12946925]
[1664623087076,0.05047381,19329.0,19328.0,1.27606455]
[1664623087237,0.05047381,19329.0,19328.0,1.14829268]
[1664623087442,0.00847381,19329.0,19328.0,1.54350238]
[1664623087655,0.00847381,19329.0,19328.0,1.14829268]
[1664623087838,0.00847381,19329.0,19328.0,1.19829268]
[1664623088275,0.05047381,19329.0,19328.0,1.50648768]
[1664623088911,0.05047381,19329.0,19328.0,1.14829268]
[1664623089347,0.05047381,19329.0,19328.0,1.50648768]
[1664623089558,0.00847381,19329.0,19328.0,1.14829268]
[1664623089786,0.00847381,19329.0,19328.0,1.50648768]
[1664623090020,0.00847381,19329.0,19328.0,1.14829268]
[1664623090248,0.05047381,19329.0,19328.0,1.14829268]
[1664623091169,0.05047381,19329.0,19328.0,1.50648768]
[1664623091386,0.00847381,19329.0,19328.0,1.50648768]
[1664623092262,0.05047381,19329.0,19328.0,1.50648768]
[1664623092689,0.05047381,19329.0,19328.0,1.14829268]
[1664623093123,0.05047381,19329.0,19328.0,1.50648768]
[1664623093369,0.00847381,19329.0,19328.0,1.50648768]
[1664623093590,0.00847381,19329.0,19328.0,1.14829268]
[1664623093810,0.00847381,19329.0,19328.0,1.50648768]
[1664623094016,0.00847381,19329.0,19328.0,1.14829268]
[1664623094231,0.05047381,19329.0,19328.0,1.14829268]
[1664623095532,0.00847381,19329.0,19328.0,1.14829268]
[1664623095756,0.00847381,19329.0,19328.0,1.50648768]
[1664623096125,0.00847381,19329.0,19328.0,1.14829268]
[1664623096347,0.05047381,19329.0,19328.0,1.50648768]
[1664623096602,0.05047381,19329.0,19328.0,1.14829268]
[1664623097251,0.05047381,19329.0,19328.0,1.50648768]
[1664623097546,0.00847381,19329.0,19328.0,1.14829268]
[1664623098400,0.00847381,19329.0,19328.0,1.28900695]
[1664623098401,0.05047381,19329.0,19328.0,1.28900695]
[1664623098572,0.05047381,19329.0,19328.0,2.04241165]
[1664623098782,0.05047381,19329.0,19328.0,1.68421665]
[1664623099072,0.05047381,19329.0,19328.0,2.04241165]
[1664623099502,0.00847381,19329.0,19328.0,1.68421665]
[1664623099717,0.00847381,19329.0,19328.0,1.64720195]
[1664623099977,0.00847381,19329.0,19328.0,1.33900695]
[1664623100342,0.05047381,19329.0,19328.0,1.69720195]
[1664623100941,0.05047381,19329.0,19328.0,1.33900695]
[1664623101596,0.05047381,19329.0,19328.0,1.69720195]
[1664623101597,0.00847381,19329.0,19328.0,1.69720195]
[1664623101927,0.00847381,19329.0,19328.0,1.74720195]
[1664623102393,0.05047381,19329.0,19328.0,1.74720195]
[1664623103306,0.05047381,19329.0,19328.0,1.24829268]
[1664623103464,0.00847381,19329.0,19328.0,1.24829268]
[1664623104165,0.00847381,19329.0,19328.0,1.60648768]
[1664623104423,0.05047381,19329.0,19328.0,1.60648768]
[1664623104645,0.05047381,19329.0,19328.0,1.24829268]
[1664623105081,0.05047381,19329.0,19328.0,1.60648768]
[1664623105428,0.00847381,19329.0,19328.0,2.32497715]
[1664623105656,0.00841155,19329.0,19328.0,2.32497715]
[1664623106360,0.05741155,19329.0,19328.0,2.32497715]
[1664623106786,0.05741155,19329.0,19328.0,2.58366915]
[1664623107560,0.00841155,19329.0,19328.0,2.58366915]
[1664623108276,0.05241155,19329.0,19328.0,2.58366915]
[1664623109626,0.00841155,19329.0,19328.0,2.58366915]
[1664623110412,0.05241155,19329.0,19328.0,2.58366915]
[1664623111593,0.00841155,19329.0,19328.0,2.58366915]
[1664623112550,0.05441155,19329.0,19328.0,2.58366915]
[1664623113531,0.00841155,19329.0,19328.0,2.58366915]
[1664623114340,0.05741155,19329.0,19328.0,2.58366915]
[1664623115562,0.00841155,19329.0,19328.0,2.58366915]
[1664623116484,0.05741155,19329.0,19328.0,2.58366915]
[1664623117154,0.06088433,19329.0,19328.0,2.58366915]
[1664623117690,0.01188433,19329.0,19328.0,2.58366915]
[1664623118478,0.06088433,19329.0,19328.0,2.58366915]
[1664623119668,0.01188433,19329.0,19328.0,2.58366915]
[1664623120591,0.06088433,19329.0,19328.0,2.58366915]
[1664623121670,0.01188433,19329.0,19328.0,2.58366915]
[1664623122555,0.06088433,19329.0,19328.0,2.58366915]
[1664623123671,0.01188433,19329.0,19328.0,2.22547415]
[1664623123825,0.01188433,19329.0,19328.0,2.58366915]
[1664623124319,0.06088433,19329.0,19328.0,2.58366915]
[1664623125691,0.01188433,19329.0,19328.0,1.96678215]
[1664623125850,0.01188433,19329.0,19328.0,2.32497715]
[1664623126511,0.06088433,19329.0,19328.0,2.32497715]
[1664623127961,0.01188433,19329.0,19328.0,2.32497715]
[1664623128742,0.06488433,19329.0,19328.0,2.32497715]
[1664623129842,0.01188433,19329.0,19328.0,2.32497715]
[1664623129993,0.01180174,19329.0,19328.0,2.32497715]
[1664623130186,0.01171295,19329.0,19328.0,2.32497715]
[1664623130401,0.06071295,19329.0,19328.0,2.32497715]
[1664623131699,0.01171295,19329.0,19328.0,2.58366915]
[1664623132592,0.06071295,19329.0,19328.0,2.58366915]
[1664623133724,0.01171295,19329.0,19328.0,2.58366915]
[1664623134462,0.06071295,19329.0,19328.0,2.58366915]
[1664623135012,0.06071295,19329.0,19328.0,2.18845945]
[1664623135486,0.06071295,19329.0,19328.0,1.83026445]
[1664623135695,0.01171295,19329.0,19328.0,2.18845945]
[1664623136215,0.01171295,19329.0,19328.0,1.50648768]
[1664623136428,0.01171295,19329.0,19328.0,1.14829268]
[1664623136638,0.06471295,19329.0,19328.0,1.14829268]
[1664623136866,0.06471295,19329.0,19328.0,1.50648768]
[1664623137644,0.01171295,19329.0,19328.0,1.50648768]
[1664623137861,0.01171295,19329.0,19328.0,1.55648768]
[1664623138540,0.06471295,19329.0,19328.0,1.55648768]
[1664623139453,0.06471295,19329.0,19328.0,1.14829268]
[1664623139664,0.01171295,19329.0,19328.0,1.50648768]
[1664623139891,0.01171295,19329.0,19328.0,1.55648768]
[1664623140443,0.06471295,19329.0,19328.0,1.55648768]
[1664623140676,0.06471295,19329.0,19328.0,1.50648768]
[1664623141917,0.01171295,19329.0,19328.0,1.19829268]
[1664623142143,0.01171295,19329.0,19328.0,1.55648768]
[1664623142581,0.06471295,19329.0,19328.0,1.55648768]
[1664623143825,0.01171295,19329.0,19328.0,1.55648768]
[1664623144248,0.01171295,19329.0,19328.0,2.13323115]
[1664623144514,0.06471295,19329.0,19328.0,1.78802145]
[1664623144724,0.06471295,19329.0,19328.0,2.18323115]
[1664623145090,0.06471295,19329.0,19328.0,1.78802145]
[1664623145789,0.01171295,19329.0,19328.0,2.18323115]
[1664623146261,0.01171295,19329.0,19328.0,1.24829268]
[1664623146485,0.01171295,19329.0,19328.0,1.55648768]
[1664623146703,0.06071295,19329.0,19328.0,1.60648768]
[1664623147820,0.01171295,19329.0,19328.0,1.60648768]
[1664623148286,0.01171295,19329.0,19328.0,1.79302145]
[1664623148713,0.06071295,19329.0,19328.0,1.79302145]
[1664623149831,0.01171295,19329.0,19328.0,1.79302145]
[1664623150627,0.06071295,19329.0,19328.0,1.79302145]
[1664623151965,0.01171295,19329.0,19328.0,1.79302145]
[1664623152353,0.01171295,19329.0,19328.0,2.18823115]
[1664623152568,0.06071295,19329.0,19328.0,1.79302145]
[1664623153641,0.06071295,19329.0,19328.0,2.18823115]
[1664623153875,0.01171295,19329.0,19328.0,2.18823115]
[1664623154554,0.06071295,19329.0,19328.0,2.18823115]
[1664623155835,0.01171295,19329.0,19328.0,2.18823115]
[1664623156612,0.06071295,19329.0,19328.0,2.18823115]
[1664623157980,0.01171295,19329.0,19328.0,2.18823115]
[1664623158695,0.06071295,19329.0,19328.0,2.18823115]
[1664623160010,0.01171295,19329.0,19328.0,2.18823115]
[1664623160228,0.01171295,19329.0,19328.0,1.83003615]
[1664623160375,0.01171295,19329.0,19328.0,2.18823115]
[1664623160589,0.06071295,19329.0,19328.0,2.18823115]
[1664623161824,0.01171295,19329.0,19328.0,2.18823115]
[1664623162624,0.06071295,19329.0,19328.0,2.18823115]
[1664623163842,0.01171295,19329.0,19328.0,2.18823115]
[1664623164628,0.06061883,19329.0,19328.0,2.57626915]
[1664623164865,0.06061883,19329.0,19328.0,2.62419426]
[1664623165687,0.06061883,19329.0,19328.0,2.22547415]
[1664623165908,0.01161883,19329.0,19328.0,2.58366915]
[1664623166653,0.05761883,19329.0,19328.0,2.58366915]
[1664623168034,0.01161883,19329.0,19328.0,2.58366915]
[1664623168755,0.05761883,19329.0,19328.0,2.58366915]
[1664623169453,0.05761883,19329.0,19328.0,2.22547415]
[1664623169642,0.05761883,19329.0,19328.0,2.58366915]
[1664623170051,0.01161883,19329.0,19328.0,2.58366915]
[1664623170674,0.05761883,19329.0,19328.0,2.58366915]
[1664623171179,0.05761883,19329.0,19328.0,1.90909738]
[1664623171417,0.05761883,19329.0,19328.0,1.14829268]
[1664623171875,0.01161883,19329.0,19328.0,1.14829268]
[1664623172093,0.01161883,19329.0,19328.0,1.50648768]
[1664623172740,0.05561883,19329.0,19328.0,1.50648768]
[1664623172993,0.05561883,19329.0,19328.0,1.14829268]
[1664623173956,0.01161883,19329.0,19328.0,1.14829268]
[1664623174737,0.05561883,19329.0,19328.0,1.14829268]
[1664623176008,0.01161883,19329.0,19328.0,1.14829268]
[1664623176637,0.05561883,19329.0,19328.0,1.14829268]
[1664623177450,0.05561883,19329.0,19328.0,1.50648768]
[1664623177921,0.01161883,19329.0,19328.0,1.50648768]
[1664623178380,0.01161883,19329.0,19328.0,1.14829268]
[1664623178829,0.05561883,19329.0,19328.0,1.14829268]
[1664623179500,0.05561883,19329.0,19328.0,1.50648768]
[1664623179947,0.01161883,19329.0,19328.0,1.14829268]
[1664623180537,0.01161883,19329.0,19328.0,1.50648768]
[1664623180758,0.05561883,19329.0,19328.0,1.14829268]
[1664623181203,0.05561883,19329.0,19328.0,1.50648768]
[1664623181689,0.05561883,19329.0,19328.0,1.14829268]
[1664623181920,0.01161883,19329.0,19328.0,1.14829268]
[1664623182143,0.01161883,19329.0,19328.0,1.50648768]
[1664623182592,0.01161883,19329.0,19328.0,1.14329268]
[1664623182804,0.05561883,19329.0,19328.0,1.50148768]
[1664623183907,0.01161883,19329.0,19328.0,1.50148768]
[1664623184589,0.01161883,19329.0,19328.0,1.14329268]
[1664623184804,0.35561883,19329.0,19328.0,1.50148768]
[1664623185027,0.05561883,19329.0,19328.0,1.14329268]
[1664623185506,0.05561883,19329.0,19328.0,1.26036844]
[1664623185740,0.05561883,19329.0,19328.0,0.90217344]
[1664623185973,0.35561883,19329.0,19328.0,0.90217344]
[1664623186439,0.31161883,19329.0,19328.0,0.90217344]
[1664623186895,0.35561883,19329.0,19328.0,0.90217344]
[1664623188102,0.51529981,19329.0,19328.0,0.90217344]
[1664623188783,0.55929981,19329.0,19328.0,0.90217344]
[1664623190090,0.51529981,19329.0,19328.0,0.90217344]
[1664623190408,0.01161883,19329.0,19328.0,0.90217344]
[1664623190583,0.31161883,19329.0,19328.0,0.90217344]
[1664623190811,0.6476464,19329.0,19328.0,0.390442]
[1664623191028,1.18053014,19329.0,19328.0,0.390442]
[1664623192079,0.74590676,19329.0,19328.0,0.390442]
[1664623192307,1.13697194,19329.0,19328.0,0.390442]
[1664623192522,0.74590676,19329.0,19328.0,0.390442]
[1664623192660,0.78190676,19329.0,19328.0,0.390442]
[1664623192913,1.17300727,19329.0,19328.0,0.390442]
[1664623193128,0.78190676,19329.0,19328.0,0.390442]
[1664623193984,0.74590676,19329.0,19328.0,0.390442]
[1664623194865,0.78190676,19329.0,19328.0,0.390442]
[1664623196089,0.74590676,19329.0,19328.0,0.390442]
[1664623196949,0.78190676,19329.0,19328.0,0.390442]
[1664623198267,0.74590676,19329.0,19328.0,0.390442]
[1664623198924,0.78190676,19329.0,19328.0,0.390442]
[1664623200002,0.74590676,19329.0,19328.0,0.390442]
[1664623200708,0.78190676,19329.0,19328.0,0.390442]
[1664623201998,0.74590676,19329.0,19328.0,0.390442]
[1664623202890,0.78190676,19329.0,19328.0,0.390442]
[1664623204001,0.74590676,19329.0,19328.0,0.390442]
[1664623204948,0.78190676,19329.0,19328.0,0.390442]
[1664623206017,0.74590676,19329.0,19328.0,0.390442]
[1664623206784,0.78190676,19329.0,19328.0,0.390442]
[1664623207391,0.78190676,19329.0,19328.0,0.3903263]
[1664623208498,0.74590676,19329.0,19328.0,0.3903263]
[1664623208728,0.78190676,19329.0,19328.0,0.3903263]
[1664623209164,0.8572561,19329.0,19328.0,0.3903263]
[1664623210181,0.8212561,19329.0,19328.0,0.3903263]
[1664623210763,0.8572561,19329.0,19328.0,0.3903263]
[1664623212102,0.8212561,19329.0,19328.0,0.3903263]
[1664623212791,0.8572561,19329.0,19328.0,0.3903263]
[1664623214185,0.8212561,19329.0,19328.0,0.3903263]
[1664623214421,0.58837236,19329.0,19328.0,0.3903263]
[1664623214961,0.62437236,19329.0,19328.0,0.3903263]
[1664623216086,0.58837236,19329.0,19328.0,0.3903263]
[1664623216842,0.62437236,19329.0,19328.0,0.3903263]
[1664623218060,0.58837236,19329.0,19328.0,0.3903263]
[1664623218793,0.62437236,19329.0,19328.0,0.3903263]
[1664623219954,0.42296817,19329.0,19328.0,0.59516563]
[1664623220162,0.08696817,19329.0,19328.0,1.58783675]
[1664623220393,0.08696817,19329.0,19328.0,2.25087108]
[1664623220622,0.08696817,19329.0,19328.0,2.04603175]
[1664623220857,0.13596817,19329.0,19328.0,2.04603175]
[1664623221749,0.13249539,19329.0,19328.0,2.04603175]
[1664623222249,0.08349539,19329.0,19328.0,2.04603175]
[1664623222917,0.13449539,19329.0,19328.0,2.04603175]
[1664623224030,0.08349539,19329.0,19328.0,2.04603175]
[1664623224950,0.13449539,19329.0,19328.0,2.04603175]
[1664623226030,0.08349539,19329.0,19328.0,2.04603175]
[1664623226490,0.08349539,19329.0,19328.0,1.68783675]
[1664623226930,0.13149539,19329.0,19328.0,2.04603175]
[1664623228040,0.08349539,19329.0,19328.0,2.04603175]
[1664623228951,0.13149539,19329.0,19328.0,2.04603175]
[1664623230281,0.08349539,19329.0,19328.0,2.04603175]
[1664623231041,0.13449539,19329.0,19328.0,2.04603175]
[1664623232040,0.08342315,19329.0,19328.0,2.04603175]
[1664623232931,0.13142315,19329.0,19328.0,2.04603175]
[1664623233485,0.13142315,19329.0,19328.0,2.17537775]
[1664623234164,0.08342315,19329.0,19328.0,2.17537775]
[1664623235049,0.13142315,19329.0,19328.0,2.17537775]
[1664623235272,0.13142315,19329.0,19328.0,2.18277775]
[1664623236600,0.08342315,19329.0,19328.0,2.18277775]
[1664623236974,0.13142315,19329.0,19328.0,2.18277775]
[1664623238202,0.08342315,19329.0,19328.0,2.18277775]
[1664623239080,0.13142315,19329.0,19328.0,2.18277775]
[1664623240740,0.08342315,19329.0,19328.0,2.18277775]
[1664623240936,0.13142315,19329.0,19328.0,2.44146975]
[1664623242159,0.08342315,19329.0,19328.0,2.44146975]
[1664623243074,0.13142315,19329.0,19328.0,2.44146975]
[1664623243288,0.13142315,19329.0,19328.0,1.92810545]
[1664623243493,0.13142315,19329.0,19328.0,1.69215775]
[1664623243737,0.13142315,19329.0,19328.0,2.08736745]
[1664623243921,0.13142315,19329.0,19328.0,2.44556245]
[1664623244132,0.08342315,19329.0,19328.0,2.44556245]
[1664623244954,0.13142315,19329.0,19328.0,2.44556245]
[1664623246328,0.08342315,19329.0,19328.0,2.44556245]
[1664623247086,0.13142315,19329.0,19328.0,2.44556245]
[1664623247326,0.387864,19333.0,19328.0,3.19440178]
[1664623247550,0.30522803,19337.0,19332.0,0.99991044]
[1664623247784,0.387873,19337.0,19333.0,1.56727097]
[1664623248013,0.387873,19337.0,19334.0,1.28149287]
[1664623248014,0.12929,19337.0,19334.0,1.28149287]
[1664623248238,0.12929,19337.0,19335.0,1.07476577]
[1664623248466,0.12929,19337.0,19336.0,0.56173144]
[1664623248960,0.517038,19338.0,19336.0,0.74377818]
[1664623249215,0.92952431,19341.0,19337.0,0.99927944]
[1664623249216,1.62854331,19341.0,19337.0,0.99927944]
[1664623249446,1.75780731,19341.0,19340.0,0.05]
[1664623249677,0.38140731,19341.0,19340.0,0.25483933]
[1664623249905,0.44539894,19341.0,19338.0,0.51173144]
[1664623250439,0.44539894,19341.0,19338.0,0.71657077]
[1664623250663,0.38140731,19341.0,19339.0,0.51173144]
[1664623251124,0.3,19340.0,19339.0,0.51173144]
[1664623251555,0.429265,19340.0,19339.0,0.51173144]
[1664623252227,0.129265,19340.0,19339.0,0.51173144]
[1664623252452,0.387796,19340.0,19339.0,0.51173144]
[1664623253166,0.450796,19340.0,19339.0,0.51173144]
[1664623254281,0.387796,19340.0,19339.0,0.51173144]
[1664623255046,0.445796,19340.0,19339.0,0.51173144]
[1664623256428,0.387796,19340.0,19339.0,0.51173144]
[1664623257125,0.445796,19340.0,19339.0,0.51173144]
[1664623258210,0.058,19340.0,19339.0,0.59740558]
[1664623258408,0.258432,19341.0,19340.0,0.05]
[1664623258561,0.258432,19341.0,19340.0,0.51173144]
[1664623258781,0.51695,19341.0,19340.0,0.51173144]
[1664623258991,0.56695,19341.0,19340.0,0.51173144]
[1664623259822,0.86695,19341.0,19340.0,0.51173144]
[1664623260034,0.56695,19341.0,19340.0,0.51173144]
[1664623260364,0.51695,19341.0,19340.0,0.51173144]
[1664623260922,0.81695,19341.0,19340.0,0.51173144]
[1664623261131,0.86695,19341.0,19340.0,0.51173144]
[1664623261355,0.86695,19341.0,19340.0,0.77173144]
[1664623262016,0.56695,19341.0,19340.0,0.77173144]
[1664623262293,0.51695,19341.0,19340.0,0.77173144]
[1664623263189,0.56695,19341.0,19340.0,0.77173144]
[1664623264280,0.51695,19341.0,19340.0,0.77173144]
[1664623265165,0.52195,19341.0,19340.0,1.30840978]
[1664623265436,0.52195,19341.0,19340.0,0.91590458]
[1664623266330,0.51695,19341.0,19340.0,0.84890458]
[1664623267205,0.162262,19341.0,19340.0,0.92090458]
[1664623267446,0.033,19341.0,19340.0,0.92090458]
[1664623268368,0.516924,19342.0,19340.0,0.84890458]
[1664623268591,0.516924,19342.0,19341.0,0.56173144]
[1664623268592,0.516925,19342.0,19341.0,0.56173144]
[1664623268825,0.75115311,19344.0,19341.0,0.56173144]
[1664623269045,0.88030811,19344.0,19341.0,0.76657077]
[1664623269316,0.88030811,19344.0,19341.0,1.02522677]
[1664623269317,0.387745,19343.0,19341.0,1.02522677]
[1664623269544,0.387745,19343.0,19342.0,0.05]
[1664623270200,0.387745,19343.0,19342.0,0.56173144]
[1664623271104,0.444745,19343.0,19342.0,0.56173144]
[1664623272270,0.387745,19343.0,19342.0,0.56173144]
[1664623273080,0.440745,19343.0,19342.0,0.51173144]
[1664623274472,0.387745,19343.0,19342.0,0.51173144]
[1664623275154,0.440745,19343.0,19342.0,0.51173144]
[1664623276358,0.387745,19343.0,19342.0,0.51173144]
[1664623277075,0.440745,19343.0,19342.0,0.51173144]
[1664623278724,0.387745,19343.0,19342.0,0.51173144]
[1664623279142,0.440745,19343.0,19342.0,0.51173144]
[1664623279356,0.957727,19343.0,19342.0,0.51173144]
[1664623279830,1.257727,19343.0,19342.0,0.51173144]
[1664623280046,0.957727,19343.0,19342.0,0.51173144]
[1664623280478,0.904727,19343.0,19342.0,0.51173144]
[1664623281165,1.261727,19343.0,19342.0,0.51173144]
[1664623282287,1.47593051,19343.0,19342.0,0.51173144]
[1664623282499,1.41893051,19343.0,19341.0,0.77038744]
[1664623282726,0.3,19342.0,19341.0,0.77038744]
[1664623282949,0.3,19342.0,19341.0,0.64105944]
[1664623283214,0.3,19342.0,19341.0,0.71605944]
[1664623284105,0.3,19342.0,19341.0,0.204328]
[1664623284320,0.3,19342.0,19341.0,0.129328]
[1664623284321,0.4204727,19342.0,19341.0,0.129328]
[1664623285248,0.4204727,19342.0,19341.0,0.204328]
[1664623286370,0.4204727,19342.0,19341.0,0.129328]
[1664623286690,0.4204727,19342.0,19340.0,0.389334]
[1664623286923,0.4225052,19341.0,19340.0,0.389334]
[1664623287138,0.7225052,19341.0,19340.0,0.26]
[1664623287580,1.6273182,19341.0,19340.0,0.26]
[1664623288312,1.6273182,19341.0,19340.0,0.25992046]
[1664623289028,1.6273182,19341.0,19340.0,0.33192046]
[1664623290423,1.234813,19341.0,19340.0,0.25992046]
[1664623290646,1.6273182,19341.0,19340.0,0.25992046]
[1664623291140,1.6273182,19341.0,19340.0,0.33392046]
[1664623292042,1.234813,19341.0,19340.0,0.33392046]
[1664623292479,1.234813,19341.0,19340.0,0.25992046]
[1664623293294,1.6273182,19341.0,19340.0,0.33392046]
[1664623293568,1.234813,19341.0,19340.0,0.33392046]
[1664623294473,1.234813,19341.0,19340.0,0.25992046]
[1664623295148,1.234813,19341.0,19340.0,0.33392046]
[1664623296531,1.234813,19341.0,19340.0,0.25992046]
[1664623297177,1.248813,19341.0,19340.0,0.33492046]
[1664623298501,1.234813,19341.0,19340.0,0.25992046]
[1664623298733,1.204813,19341.0,19340.0,0.25992046]
[1664623299195,1.218813,19341.0,19340.0,0.33492046]
[1664623300381,1.218813,19341.0,19340.0,0.25992046]
[1664623300636,1.204813,19341.0,19340.0,0.25992046]
[1664623301306,1.211813,19341.0,19340.0,0.32892046]
[1664623302427,1.204813,19341.0,19340.0,0.25992046]
[1664623303338,1.211813,19341.0,19340.0,0.32892046]
[1664623304543,1.204813,19341.0,19340.0,0.25992046]
[1664623305104,1.211813,19341.0,19340.0,0.32892046]
[1664623306375,1.211813,19341.0,19340.0,0.25992046]
[1664623306575,1.204813,19341.0,19340.0,0.25992046]
[1664623307172,1.211813,19341.0,19340.0,0.32892046]
[1664623308441,1.204813,19341.0,19340.0,0.25992046]
[1664623309204,1.211813,19341.0,19340.0,0.32892046]
[1664623310644,1.204813,19341.0,19340.0,0.25992046]
[1664623311328,1.211813,19341.0,19340.0,0.32892046]
[1664623311757,1.211813,19341.0,19340.0,0.32884531]
[1664623312461,1.204813,19341.0,19340.0,0.25984531]
[1664623312676,0.904813,19341.0,19340.0,0.25984531]
[1664623313346,0.911813,19341.0,19340.0,0.84057675]
[1664623314509,0.904813,19341.0,19340.0,0.77157675]
[1664623315416,0.911813,19341.0,19340.0,0.84057675]
[1664623316557,0.904813,19341.0,19340.0,0.77157675]
[1664623317251,0.911813,19341.0,19340.0,0.84057675]
[1664623318163,0.911813,19341.0,19340.0,0.95050273]
[1664623318391,0.265518,19341.0,19340.0,1.00185273]
[1664623318610,0.646179,19342.0,19340.0,0.93285273]
[1664623318828,0.387777,19341.0,19340.0,1.14017273]
[1664623319078,0.387777,19341.0,19340.0,0.88150273]
[1664623320200,0.387777,19341.0,19340.0,0.77157675]
[1664623321312,0.950813,19341.0,19340.0,0.77157675]
[1664623322549,0.904813,19341.0,19340.0,0.77157675]
[1664623323253,0.950813,19341.0,19340.0,0.77157675]
[1664623324566,0.904813,19341.0,19340.0,0.77157675]
[1664623325481,0.950813,19341.0,19340.0,0.77157675]
[1664623326605,0.904813,19341.0,19340.0,0.77157675]
[1664623327367,0.950813,19341.0,19340.0,0.77157675]
[1664623328937,0.904813,19341.0,19340.0,0.77157675]
[1664623329422,0.950813,19341.0,19340.0,0.77157675]
[1664623331029,0.904813,19341.0,19340.0,0.77157675]
[1664623331475,0.950813,19341.0,19340.0,0.77157675]
[1664623332653,0.904813,19341.0,19340.0,0.77157675]
[1664623333091,1.204813,19341.0,19340.0,0.77157675]
[1664623333320,1.250813,19341.0,19340.0,0.77157675]
[1664623333766,1.250813,19341.0,19340.0,0.77147321]
[1664623334714,1.204813,19341.0,19340.0,0.77147321]
[1664623335377,1.211813,19341.0,19340.0,0.84047321]
[1664623336203,1.211813,19341.0,19340.0,0.84038448]
[1664623336621,1.204813,19341.0,19340.0,0.77138448]
[1664623337564,1.211813,19341.0,19340.0,0.84038448]
[1664623338734,1.204813,19341.0,19340.0,0.77138448]
[1664623339333,1.215813,19341.0,19340.0,0.84438448]
[1664623340752,1.204813,19341.0,19340.0,0.77138448]
[1664623341530,1.215813,19341.0,19340.0,0.84438448]
[1664623342620,1.204813,19341.0,19340.0,0.77138448]
[1664623343487,1.215813,19341.0,19340.0,0.84438448]
[1664623344542,1.215813,19341.0,19340.0,0.77138448]
[1664623344717,1.204813,19341.0,19340.0,0.77138448]
[1664623345398,1.215813,19341.0,19340.0,0.84438448]
[1664623345854,0.07619252,19339.0,19333.0,0.04052511]
[1664623346072,0.07619252,19334.0,19331.0,0.18226919]
[1664623346278,0.07619252,19334.0,19332.0,0.69738306]
[1664623346558,0.89007844,19336.0,19332.0,0.69738306]
[1664623346559,0.69007844,19335.0,19332.0,0.69738306]
[1664623346774,0.45801569,19335.0,19332.0,0.69738306]
[1664623346997,0.3,19335.0,19332.0,0.69738306]
[1664623347219,0.129306,19334.0,19332.0,0.69738306]
[1664623348665,0.129306,19334.0,19332.0,0.51173144]
[1664623349429,0.9780024,19333.0,19326.0,0.129428]
[1664623349607,0.387978,19331.0,19327.0,0.51173144]
[1664623349813,0.3,19330.0,19327.0,0.51673144]
[1664623349991,0.388017,19329.0,19328.0,0.24064297]
[1664623351031,0.388017,19329.0,19328.0,0.75237441]
[1664623351248,0.388017,19329.0,19328.0,0.51673144]
[1664623351471,0.426017,19329.0,19328.0,0.51673144]
[1664623352670,1.13362204,19329.0,19328.0,0.005]
[1664623353564,1.17362204,19329.0,19328.0,0.005]
[1664623354920,0.7435436,19329.0,19328.0,0.005]
[1664623355621,0.07619252,19327.0,19324.0,0.0021]